Cogmind - Beta 14 @@@ ROGUE MODE // 2024.11.26 @ 10:00:25 Player: Kyzrati Result: Destroyed by S-27 Virus with Autogun Performance ------------- Evolutions (1) 500 Regions Visited (7) 1400 Robots Destroyed (106) 530 Value Destroyed (2428) 2428 Prototype IDs (17) 340 Alien Tech Used (0) 0 Bonus (-337) -337 TOTAL SCORE: 4861 Bonus ------- High Alert Combat Kills 46 Follower Combat Kills 185 Met Imprinter 300 Friendly Fire -868 Cogmind --------- Core Integrity 0/400 Matter 110/300 Energy 100/100 System Corruption 3% Temperature Cool (0) Movement Hovering (118) Ox1 Location -6/Proximity Caves Parts ------- > --- POWER (1) -------- Zionite Light DM Reactor > --- PROPULSION (3) --- Gravmag System Zionite Glidesys I Zionite Glidesys I > --- UTILITY (3) ------ Large Storage Unit Spectral Analyzer Makeshift Light Armor Plating > --- WEAPON (2) ------- Improved Medium Laser Makeshift Sword > --- INVENTORY (15) --- Micro Nuclear Core Makeshift Leg Makeshift Leg Zionite Biocell (600) High-capacity Matter Pod (0) Seismic Detector Improved Reaction Control System Autogun Flak Gun CR-A16's Pointy Stick Peak State ------------ > --- POWER ------------ Zionite Light DM Reactor > --- PROPULSION ------- Zionite Glidesys I Zionite Glidesys I Zionite Glidesys I > --- UTILITY ---------- Large Storage Unit Spectral Analyzer Hacking Drone Bay > --- WEAPON ----------- Zionite Laser-S Makeshift Sword > --- INVENTORY -------- Micro Nuclear Core Makeshift Leg Makeshift Leg Gravmag System Zionite Biocell High-capacity Matter Pod Seismic Detector Improved Reaction Control System Makeshift Light Armor Plating Improved Medium Laser Autogun Flak Gun Missile Launcher CR-A16's Pointy Stick Dirty Bomb Trap [Rating: 60] Favorites ----------- Power Improved Ion Engine Engine Improved Ion Engine Power Core Light Nuclear Core Reactor Zionite Light DM Reactor Propulsion Light Treads Treads Light Treads Leg Makeshift Leg Wheel Compact Wheel Hover Unit Zionite Glidesys I Utility Large Storage Unit Device Seismic Detector Storage Large Storage Unit Processor Spectral Analyzer Protection Medium Armor Plating Weapon Autogun Energy Gun Improved Medium Laser Ballistic Gun Autogun Ballistic Cannon Battle Cannon Launcher Missile Launcher Slashing Weapon Axe Build | -11 -10 -10 -9 -9 -7 -7 -6 ------- Run | Yrd Mat Min Mat Min Zio Dee Pro Slots Evolved 2 | . . . 2 . . . . Power . | . . . . . . . . Propulsion 1 | . . . 1 . . . . Utility 1 | . . . 1 . . . . Weapon . | . . . . . . . . Parts Attached 139 | 9 18 1 26 . 50 19 16 Power 9 | 2 2 . 2 . 2 1 . Engine 7 | 2 1 . 2 . 2 . . Core 1 | . 1 . . . . . . Reactor 1 | . . . . . . 1 . Propulsion 39 | 2 . . 10 . 15 7 5 Treads 18 | 2 . . 10 . 6 . . Leg 13 | . . . . . 8 3 2 Wheel 1 | . . . . . 1 . . Hover 7 | . . . . . . 4 3 Flight . | . . . . . . . . Utility 39 | 2 11 1 4 . 10 5 6 Device 14 | 1 4 1 . . 3 1 4 Storage 4 | 1 1 . 1 . . 1 . Processor 4 | . . . . . 4 . . Hackware . | . . . . . . . . Protection 17 | . 6 . 3 . 3 3 2 Artifact . | . . . . . . . . Weapon 52 | 3 5 . 10 . 23 6 5 Energy Gun 9 | 2 2 . 1 . 2 1 1 Energy Cannon . | . . . . . . . . Ballistic Gun 22 | 1 3 . 5 . 10 2 1 Ballistic Cannon 1 | . . . . . . 1 . Launcher 13 | . . . 3 . 7 2 1 Special Weapon . | . . . . . . . . Impact Weapon . | . . . . . . . . Slashing Weapon 7 | . . . 1 . 4 . 2 Piercing Weapon . | . . . . . . . . Special Melee Weapon . | . . . . . . . . Unidentified Prototypes 10 | . . . . . 5 5 . Parts Lost 22 | . 2 . 4 . 13 . 3 Power 3 | . . . 1 . 2 . . Propulsion 8 | . . . 1 . 6 . 1 Utility 4 | . 1 . 1 . 2 . . Weapon 7 | . 1 . 1 . 3 . 2 Highest Loss Streak 7 | . 2 . 1 . 7 . 3 To Critical Strikes . | . . . . . . . . Average Slot Usage (%) 98 | . 100 100 99 100 96 99 99 Engine 8 | . 13 . 10 11 9 2 . Reactor 1 | . . . . . . 8 11 Treads 23 | . 28 28 32 33 27 . . Leg 5 | . . . . . 4 31 1 Hover 1 | . . . . . . 1 31 Device 6 | . 9 11 11 11 4 . 8 Storage 11 | . 14 14 11 11 11 11 11 Processor 5 | . . . . . 10 11 11 Protection 7 | . 4 2 10 11 6 10 2 Energy Gun 7 | . 7 . 1 11 9 9 10 Ballistic Gun 14 | . 20 28 19 11 9 10 1 Peak Build Rating 60 | 7 13 13 17 17 43 54 60 Average Rating 24 | 5 10 12 15 17 27 47 52 On Entrance 20 | . 7 13 12 17 17 42 54 Naked Turns . | . . . . . . . . Heaviest Build 50 | 15 38 38 42 41 43 50 44 Greatest Support 60 | 40 40 40 60 60 60 60 42 Greatest Overweight (x) 1 | . . . . . 1 1 1 Average Overweight (x) . | . . . . . . . . Largest Inventory Capacity 15 | 8 15 15 15 15 15 15 15 Average Capacity 14 | 7 14 15 15 15 15 15 15 Most Carried 15 | 6 15 15 15 15 15 15 15 Average Carried 14 | 4 14 14 14 15 14 14 13 Final Capacity 15 | 8 15 15 15 15 15 15 15 Final Carried 15 | 6 15 15 15 15 15 13 10 Class Distribution -------------------- 57% | Mutant 42% | Scavenger-Mutant Dominant Class ---------------- Mutant | -10/Materials Mutant | -10/Mines Mutant | -9/Materials Scavenger-Mutant | -9/Mines Mutant | -7/Zion Scavenger-Mutant | -7/Deep Caves Scavenger-Mutant | -6/Proximity Caves Resources | -11 -10 -10 -9 -9 -7 -7 -6 ----------- Run | Yrd Mat Min Mat Min Zio Dee Pro Matter Collected 3216 | 79 1052 109 796 . 789 219 172 Remotely . | . . . . . . . . Salvage Created 3121 | 143 958 143 1053 . 704 . 120 Parts 248 | 10 63 12 84 . 68 . 11 Haulers Intercepted 2 | . 1 . 1 . . . . Recyclers Shooed 3 | 1 1 . 1 . . . . Parts Field Recycled 25 | . . . . . 21 4 . Retrieved Matter 158 | . . . . . 115 43 . Parts Self-Destructed 9 | . . . . . . . 9 Prevented . | . . . . . . . . Kills | -11 -10 -10 -9 -9 -7 -7 -6 ------- Run | Yrd Mat Min Mat Min Zio Dee Pro Combat Hostiles Destroyed 61 | . 15 5 28 . 10 . 3 Melee 2 | . . . . . . . 2 Guns 42 | . 15 5 21 . 1 . . AOE 17 | . . . 7 . 9 . 1 Classes Destroyed 16 | 2 5 1 2 . 4 . 2 Worker 2 | . . . 2 . . . . Builder 5 | . 4 . 1 . . . . Tunneler 3 | 3 . . . . . . . Hauler 2 | . 1 . 1 . . . . Recycler 4 | 1 2 . 1 . . . . Minesweeper 1 | . . . . . . . 1 Operator 2 | . 1 . 1 . . . . Watcher 5 | . 2 . 3 . . . . Swarmer 19 | . . 3 14 . . . 2 Grunt 23 | . 15 2 6 . . . . Sentry 8 | . . . 8 . . . . Programmer 1 | . . . . . . . 1 Zionite 29 | . . . . . 29 . . Tinkerer 3 | . . . . . 3 . . Wasp 1 | . . . . . 1 . . Thug 2 | . . . . . 2 . . Butcher 2 | . . . . . 2 . . Mutant 5 | . . . . . 5 . . Best Kill Streak 9 | 4 5 5 8 . 9 . 1 Combat Bots Only 9 | . 3 5 7 . 9 . 1 Max Kills in Single Turn 4 | 1 1 1 4 . 2 . 1 Gunslinging . | . . . . . . . . Exploded 3 | . . . 3 . 2 . 1 Melee 1 | . . . . . . . 1 Uniques/NPCs Destroyed 1 | . . . . . 1 . . Imprinter (-7/Zion) Combat | -11 -10 -10 -9 -9 -7 -7 -6 -------- Run | Yrd Mat Min Mat Min Zio Dee Pro Hostile Shots Fired 353 | . 63 23 107 . 122 12 26 Missed 103 | . 15 3 32 . 42 4 7 Damage Taken 4131 | . 613 225 919 . 1829 229 316 Core 537 | . 78 51 82 . 262 . 64 Absorbed by Shields . | . . . . . . . . Regen/Repaired (Parts) 265 | . . . . . 265 . . Core Remaining (%) 74 | 100 . 48 . . . . . Volleys Fired 240 | 10 56 11 75 . 71 3 14 Largest 2 | 2 2 2 2 . 2 2 1 Hottest 90 | 70 90 46 79 . 84 67 60 Shots Fired 439 | 20 112 22 146 . 119 6 14 Gun 406 | 20 112 22 142 . 97 2 11 Cannon 2 | . . . . . . 2 . Launcher 31 | . . . 4 . 22 2 3 Special . | . . . . . . . . Kinetic 313 | 10 88 22 128 . 61 4 . Thermal 83 | 10 12 . 14 . 36 . 11 Explosive 31 | . . . 4 . 22 2 3 Electromagnetic 12 | . 12 . . . . . . Robot Hit Streak 22 | 6 22 6 21 . 8 1 . Robot Miss Streak 4 | 1 4 2 4 . 3 4 . Penetration Max . | . . . . . . . . Secondary Targets 5 | . 3 1 . . 1 . . Max Gunslinging Chain 1 | . 1 1 . . 1 . . Shots Hit Robots 284 | 14 77 16 90 . 78 2 7 Core Hits 170 | 5 38 6 46 . 70 1 4 Critical Kills 1 | . . . . . 1 . . Critical Parts Destroyed . | . . . . . . . . Critical Strikes 7 | . . . 1 . 4 . 2 Burn 4 | . . . 1 . 3 . . Destroy 1 | . . . . . 1 . . Sever 2 | . . . . . . . 2 Melee Attacks 19 | . . . 1 . 5 . 13 Impact . | . . . . . . . . Slashing 19 | . . . 1 . 5 . 13 Piercing . | . . . . . . . . Sneak Attacks 7 | . . . . . 5 . 2 Combat Hostiles . | . . . . . . . . Follow-up Attacks . | . . . . . . . . Damage Inflicted 7627 | 166 1221 248 1783 . 3655 48 506 Guns 3939 | 166 1152 248 1388 . 962 23 . Cannons 25 | . . . . . . 25 . Explosions 2980 | . 69 . 395 . 2332 . 184 Melee 683 | . . . . . 361 . 322 Ramming . | . . . . . . . . Kinetic 3116 | 90 909 248 1289 . 532 48 . Thermal 772 | 76 167 . 99 . 430 . . Explosive 2911 | . . . 395 . 2332 . 184 Electromagnetic 145 | . 145 . . . . . . Impact . | . . . . . . . . Slashing 683 | . . . . . 361 . 322 Piercing . | . . . . . . . . Highest Corruption 7 | . . . 2 2 7 3 3 Average Corruption 3 | . . . 2 2 3 3 3 Corruption Purged . | . . . . . . . . Corruption Blocked . | . . . . . . . . Effects 54 | . . . 2 . 24 21 7 Message Errors 15 | . . . . . 9 4 2 Matter Fused 16 | . . . 1 . 6 6 3 Heat Flow Errors 9 | . . . . . 6 2 1 Energy Discharges 4 | . . . . . 1 2 1 Data Loss (minor) 4 | . . . 1 . 1 2 . Data Loss (major) 2 | . . . . . . 2 . Misfires 3 | . . . . . 1 2 . Alerts 1 | . . . . . . 1 . Overload Shots . | . . . . . . . . Overflow Damage 168 | . . . . . 72 . 96 Projectiles . | . . . . . . . . Explosions 119 | . . . . . 59 . 60 Melee 49 | . . . . . 13 . 36 Knockbacks . | . . . . . . . . Impact . | . . . . . . . . Kinetic . | . . . . . . . . Secondary . | . . . . . . . . Self-Inflicted Damage 411 | . 30 . . . 381 . . Shots 11 | . 1 . . . 10 . . Rammed . | . . . . . . . . Targets Rammed 1 | . . . 1 . . . . Kicked . | . . . . . . . . Crushed 1 | . . . 1 . . . . Highest Temperature 397 | 45 132 142 129 . 397 258 197 Average Temperature 67 | 17 31 80 25 . 112 126 59 Received Heat Transfer 1011 | . 339 90 270 . 240 72 . Effects 3 | . . . . . 3 . . Shutdowns 1 | . . . . . 1 . . Interference 2 | . . . . . 2 . . Siege Activations . | . . . . . . . . Robots Corrupted . | . . . . . . . . Combat Hostiles . | . . . . . . . . Parts Fried . | . . . . . . . . Impact Corruptions . | . . . . . . . . Robots Melted . | . . . . . . . . Combat Hostiles . | . . . . . . . . Parts Melted 5 | . . . 2 . 3 . . Heat Transferred 1987 | 222 346 . 296 . 1123 . . Parts Sabotaged . | . . . . . . . . Parts Stolen . | . . . . . . . . Parts Stripped . | . . . . . . . . Power Chain Reactions 1 | . 1 . . . . . . Alert | -11 -10 -10 -9 -9 -7 -7 -6 ------- Run | Yrd Mat Min Mat Min Zio Dee Pro Peak Influence 653 | 20 294 243 653 163 . . . Initial 163 | . 13 108 94 163 . . . Average 201 | 6 160 233 253 163 . . . Maximum Alert Level 2 | . 1 1 2 . . . . Low Security (%) 51 | 100 55 8 47 100 . . . Level 1 39 | . 44 91 30 . . . . Level 2 9 | . . . 21 . . . . Level 3 . | . . . . . . . . Level 4 . | . . . . . . . . Level 5 . | . . . . . . . . High Security . | . . . . . . . . Max Security . | . . . . . . . . Squads Dispatched 6 | . 3 . 3 . . . . Investigation 2 | . 2 . . . . . . Extermination . | . . . . . . . . Reinforcement 4 | . 1 . 3 . . . . Assault . | . . . . . . . . Garrison . | . . . . . . . . Intercept . | . . . . . . . . Searches Triggered . | . . . . . . . . Construction Impeded . | . . . . . . . . Haulers Reinforced . | . . . . . . . . Active Scanning Responses . | . . . . . . . . Cargo Convoy Interrupts . | . . . . . . . . Stealth | -11 -10 -10 -9 -9 -7 -7 -6 --------- Run | Yrd Mat Min Mat Min Zio Dee Pro Distress Signals 8 | . 3 . 5 . . . . Communications Jammed . | . . . . . . . . Distress Signals . | . . . . . . . . Times Spotted 119 | . 25 5 39 . 38 5 7 Peak Tracking Total 13 | . 5 3 7 . 13 3 4 Tactical Retreats 4 | . 1 . 1 . . 1 1 Traps | -11 -10 -10 -9 -9 -7 -7 -6 ------- Run | Yrd Mat Min Mat Min Zio Dee Pro Traps Triggered 3 | . 2 . 1 . . . . Indirectly . | . . . . . . . . Trap Hack Attempts . | . . . . . . . . Triggered . | . . . . . . . . Disarmed . | . . . . . . . . Reprogrammed . | . . . . . . . . Reused 1 | . . . . . . . 1 Traps Extracted . | . . . . . . . . Installed 2 | . . . . . . . 2 Triggered 1 | . . . . . . . 1 Most Traps Carried 1 | . . . . . . . 1 Machines | -11 -10 -10 -9 -9 -7 -7 -6 ---------- Run | Yrd Mat Min Mat Min Zio Dee Pro Machines Disabled 5 | . . . 1 . 2 2 . Max in Single Turn 2 | . . . 1 . 2 1 . Machines Repaired . | . . . . . . . . Machines Dismantled . | . . . . . . . . Machines Sabotaged . | . . . . . . . . Overloaded Fab Kills . | . . . . . . . . Hacking | -11 -10 -10 -9 -9 -7 -7 -6 --------- Run | Yrd Mat Min Mat Min Zio Dee Pro Machines Accessed 14 | . 7 . 7 . . . . Terminals 14 | . 7 . 7 . . . . Fabricators . | . . . . . . . . Repair Stations . | . . . . . . . . Recycling Units . | . . . . . . . . Scanalyzers . | . . . . . . . . Garrison Access . | . . . . . . . . Total Hacks 35 | . 22 . 13 . . . . Successful 18 | . 10 . 8 . . . . Failed 17 | . 12 . 5 . . . . Catastrophic 2 | . . . 2 . . . . Database Lockouts . | . . . . . . . . Manual 22 | . 10 . 8 . 4 . . Terminals 35 | . 22 . 13 . . . . Fabricators . | . . . . . . . . Repair Stations . | . . . . . . . . Recycling Units . | . . . . . . . . Scanalyzers . | . . . . . . . . Garrison Access . | . . . . . . . . Terminal Hacks 14 | . 9 . 5 . . . . Part Schematic 1 | . 1 . . . . . . Prototype ID Bank 5 | . 4 . 1 . . . . Unreport Threat 1 | . . . 1 . . . . Hauler Manifests 2 | . 1 . 1 . . . . Registered Components 1 | . 1 . . . . . . Zone Layout 4 | . 2 . 2 . . . . Fabricator Hacks . | . . . . . . . . Repair Station Hacks . | . . . . . . . . Recycling Unit Hacks . | . . . . . . . . Scanalyzer . | . . . . . . . . Garrison Access Hacks . | . . . . . . . . Unauthorized Hacks 4 | . 1 . 3 . . . . Terminals 4 | . 1 . 3 . . . . Track 1 | . . . 1 . . . . Botnet 3 | . 1 . 2 . . . . Fabricators . | . . . . . . . . Repair Stations . | . . . . . . . . Recycling Units . | . . . . . . . . Scanalyzers . | . . . . . . . . Garrison Access . | . . . . . . . . Data Cores Recovered . | . . . . . . . . Used . | . . . . . . . . Hacking Detections 10 | . 4 . 6 . . . . Full Trace Events . | . . . . . . . . Feedback Events . | . . . . . . . . Feedback Blocked . | . . . . . . . . Robot Schematics Acquired . | . . . . . . . . Robots Built . | . . . . . . . . Authchips . | . . . . . . . . Time . | . . . . . . . . Total Robot Build Rating . | . . . . . . . . Part Schematics Acquired 1 | . 1 . . . . . . Parts Built . | . . . . . . . . Authchips . | . . . . . . . . Time . | . . . . . . . . Total Part Build Rating . | . . . . . . . . Parts Repaired . | . . . . . . . . Time . | . . . . . . . . Parts Recycled . | . . . . . . . . Recycled Matter . | . . . . . . . . Retrieved Matter . | . . . . . . . . Retrieved Components . | . . . . . . . . Parts Scanalyzed . | . . . . . . . . Part Schematics Acquired . | . . . . . . . . Parts Damaged . | . . . . . . . . Bothacking | -11 -10 -10 -9 -9 -7 -7 -6 ------------ Run | Yrd Mat Min Mat Min Zio Dee Pro Used RIF Installer . | . . . . . . . . Robots Hacked . | . . . . . . . . Non-combat . | . . . . . . . . Combat . | . . . . . . . . Robot Hacks Applied . | . . . . . . . . Relay Couplers Released . | . . . . . . . . Fabnet Peak Effective % . | . . . . . . . . Robots Rewired . | . . . . . . . . Allies Hacked . | . . . . . . . . Hacks Repelled . | . . . . . . . . Allies | -11 -10 -10 -9 -9 -7 -7 -6 -------- Run | Yrd Mat Min Mat Min Zio Dee Pro Total Allies 8 | . . . . . 7 1 . Largest Group 7 | . . . . . 7 1 . Highest-Rated Group 176 | . . . . . 176 119 . Highest-Rated Ally 119 | . . . . . 31 119 . Total Orders 2 | . . . . . . . 2 EXPLORE 1 | . . . . . . . 1 RETURN 1 | . . . . . . . 1 Ally Attacks 38 | . . . . . . 38 . Total Damage 1852 | . . . . . . 1852 . Kills 13 | . . . . . . 13 . Allies Corrupted . | . . . . . . . . Allies Melted . | . . . . . . . . Intel | -11 -10 -10 -9 -9 -7 -7 -6 ------- Run | Yrd Mat Min Mat Min Zio Dee Pro Robot Analysis Total . | . . . . . . . . Derelict Logs Recovered 2 | . . . . . 1 . 1 Drone Launches 1 | . . . . . . . 1 Drone Recoveries . | . . . . . . . . Exploration | -11 -10 -10 -9 -9 -7 -7 -6 ------------- Run | Yrd Mat Min Mat Min Zio Dee Pro Turns Passed 7586 | 139 1517 268 1623 78 2572 994 395 Spaces Moved 4285 | 63 775 145 769 49 1456 692 336 Core 9 | 9 . . . . . . . Treads 3026 | 54 775 145 769 49 1234 . . Legs 787 | . . . . . 169 616 2 Wheels 53 | . . . . . 53 . . Hover 410 | . . . . . . 76 334 Flight . | . . . . . . . . Fastest Speed 50 | 50 160 160 160 160 115 52 52 Average Speed 145 | 144 160 160 160 160 155 130 55 Slowest Speed 210 | 160 160 160 160 160 210 210 140 Overloaded Moves . | . . . . . . . . Propulsion Burnouts . | . . . . . . . . Robots Hopped . | . . . . . . . . Cave-ins Triggered . | . . . . . . . . Exploration Rate (%) 55 | 5 95 41 68 17 91 77 50 Regions Visited 7 Branch Regions 5 Pre-discovered Areas 3 | . . . . . 3 . . Known Exits Taken . | . . . . . . . . Unknown Exits Taken 7 | 1 1 1 1 1 1 1 . Scrap Searched 5 | . . . . . 5 . . Spaces Dug 59 | . . . 11 . . . 48 Terrain Destroyed 95 | . 2 . 34 . 10 1 48 Melee 1 | . . . 1 . . . . Projectile 11 | . . . . . . . 11 AOE 83 | . 2 . 33 . 10 1 37 Terrain Rammed . | . . . . . . . . Walls Destroyed . | . . . . . . . . Machines Disabled . | . . . . . . . . Actions | -11 -10 -10 -9 -9 -7 -7 -6 --------- Run | Yrd Mat Min Mat Min Zio Dee Pro Total 5235 | 87 959 164 1040 49 1642 779 515 Wait 411 | 1 81 6 142 1 11 46 123 Move 4278 | 62 774 144 768 48 1455 691 336 Hop . | . . . . . . . . Pick Up 68 | 5 18 1 12 . 22 5 5 Fast Attach 31 | 7 2 . 1 . 13 7 1 Attach 34 | . 4 . 7 . 13 6 4 Detach 10 | . 1 . . . 8 1 . Swap 74 | 2 12 1 18 . 24 6 11 Drop 67 | . 11 1 15 . 20 14 6 Fire 240 | 10 56 11 75 . 71 3 14 Melee 19 | . . . 1 . 5 . 13 Ram . | . . . . . . . . Kick . | . . . . . . . . Crush 1 | . . . 1 . . . . Escape Stasis . | . . . . . . . . Rewire . | . . . . . . . . Trap 2 | . . . . . . . 2 Miscellaneous . | . . . . . . . . Route ------- -11/Scrapyard -10/Materials (discovered 5 exits: *Mat x3 / [*Min x2]) -10/Mines -9/Materials (discovered 3 exits: [*Mat x2] / [*Min]) -9/Mines -7/Zion (discovered 2 exits: [*Dee] / [*Pro]) -7/Deep Caves -6/Proximity Caves History --------- Turn | Location | Event 4 | -11/Scrapyard | Discovered new exit (range 16) 140 | -11/Scrapyard | Entered Materials 303 | -10/Materials | Build established: Mutant 449 | -10/Materials | Discovered new exit (range 6) 597 | -10/Materials | Discovered new exit (range 16) 866 | -10/Materials | Discovered new exit (range 8) 944 | -10/Materials | Discovered new exit (range 16) 1382 | -10/Materials | Discovered new exit (range 4) 1657 | -10/Materials | Entered Mines 1666 | -10/Mines | Met a Derelict bent on vengeance 1681 | -10/Mines | Core integrity fell below 50% 1848 | -10/Mines | Received a Rocket Launcher from a helpful Derelict 1898 | -10/Mines | Discovered new exit (range 9) 1925 | -10/Mines | Entered Materials 1925 | -9/Materials | Evolved 2 slots: Propulsion x1, Utility x1 2677 | -9/Materials | Discovered new exit (range 7) 3075 | -9/Materials | Build established: Scavenger-Mutant 3171 | -9/Materials | Discovered new exit (range 4) 3464 | -9/Materials | Destroyed 7 combat bots 3512 | -9/Materials | Discovered new exit (range 9) 3548 | -9/Materials | Entered Mines 3549 | -9/Mines | Assembled infested the area 3608 | -9/Mines | A Derelict revealed a hidden shortcut to a safe place 3626 | -9/Mines | Entered Zion 3740 | -7/Zion | Found Prototype Processor 3740 | -7/Zion | Identified Exp. Armor Integrity Analyzer 3744 | -7/Zion | Found Prototype Processor 3744 | -7/Zion | Identified Exp. Core Analyzer 3747 | -7/Zion | Found Prototype Processor 3747 | -7/Zion | Identified Exp. Terrain Scan Processor 3751 | -7/Zion | Found Prototype Processor 3751 | -7/Zion | Identified Spectral Analyzer 3822 | -7/Zion | Given the Hacking Drone Bay 3855 | -7/Zion | Discovered new exit (range 10) 3947 | -7/Zion | Found Prototype Device 3961 | -7/Zion | System corruption cleaned by Quarantine Array 4023 | -7/Zion | Learned 4 Factory zone layouts 4027 | -7/Zion | Visited the Megawrench Repair Shop 4182 | -7/Zion | Megawrench repaired 7 parts 4475 | -7/Zion | Build established: Mutant 4568 | -7/Zion | Met Imprinter 4726 | -7/Zion | Gained Derelict followers 4804 | -7/Zion | Learned location of Warlord (-4) 4833 | -7/Zion | Found CR-A16's Pointy Stick 4900 | -7/Zion | Learned location of Armory (-3) 5620 | -7/Zion | Murdered Imprinter 5621 | -7/Zion | Attacked by Zionites 5623 | -7/Zion | Extracted access codes from Imprinter's data core 5645 | -7/Zion | Core integrity fell below 50% 5665 | -7/Zion | Destroyed 9 combat bots 5672 | -7/Zion | Lost 7 parts (1p3n1u2w) 5795 | -7/Zion | Identified Hacking Drone Bay 5796 | -7/Zion | Lost 5 parts (1p2n1u1w) 5893 | -7/Zion | Core integrity fell below 20% 6121 | -7/Zion | Build established: Scavenger-Mutant 6163 | -7/Zion | Opened final containment barrier to the Deep Caves 6194 | -7/Zion | Discovered new exit (range 3) 6194 | -7/Zion | Saw the warning signs outside the Deep Caves entrance 6198 | -7/Zion | Entered Deep Caves 6200 | -7/Deep Caves | Met 5H-AD0 6272 | -7/Deep Caves | Z-Facility disabled 6480 | -7/Deep Caves | Found Prototype Protection 6480 | -7/Deep Caves | Identified Zio. Weapon Casing 6880 | -7/Deep Caves | Discovered new exit (range 7) 7192 | -7/Deep Caves | Entered Proximity Caves 7547 | -6/Proximity Caves | Spotter reported a threat 7562 | -6/Proximity Caves | Learned Factory terminal intel 7587 | -6/Proximity Caves | Destroyed by S-27 Virus with Autogun Last Messages --------------- 07545_ VTOL Module fries itself beyond repair. 07545_ N-01 Spotter is scanning... 07547_ Acquired 19 matter. 07547_ N-01 Spotter sends a signal. 07547_ ALERT: Unidentified potential threat approaching Complex 0b10. 07548_ Destroyed Lgt. Nuclear Core. 07550_ Missile Launcher destroyed. 07556_ Dropped Dirty Bomb Trap. 07556_ Installed Dirty Bomb Trap. 07559_ S-27 Virus triggered Dirty Bomb Trap. 07559_ An explosion rips through the floor. 07559_ Zio. Laser-S destroyed. 07561_ S-27 Virus IFF system glitched. 07562_ V,H3EB/4BMTBJ|VWSD0WJ,A 07562_ Acquired derelict log, extracted data. Data stored: Factory terminal intel. 07573_ S-27 Virus destroyed. 07574_ Zio. Glidesys I destroyed. 07581_ Autogun fries itself beyond repair. Map ----- +----------------------------------------------------+ | # ### #???????????????????????????????????????? | | # ?# #???????????????????????????????????????? | | ## ##??????????????????????????????????????? | | # # ##?????????????????????????????????????? | | # ###???????????????????????????????????? | | ## "####????????????????????????????????? | | ### " #????????????????????????????????? | | ## ###" ###????????????????????????????????? | | #### #??## #?????????????????????????????????? | | ## # ! #????##?????????????????????????????????? | | ?## #???????????????????????????????????????? | | ### #???????????????????????????????????????? | | ## ######??????????????????????????????????? | | ## # #??????????????????????????????????? | | ## # #"""""###?????##?????????????????????????? | | ### ##???# ##????????????????????????? | | ####[##""" ##?# ####?????????????????????? | | ###"##?? " ## #?????????????????????? | | =[#????# ## #?????????????????????? | | ###????# ## #?????????????????????? | | # #??????# ### ##????????????????????? | | ## ##??????## # ### #????????????????????? | | ?###????????## ### #?## #????????????????????? | | ?????????????# #?# ### #????????????????????? | | ?????????????# #?# #????????????????????? | | ??############ ######## @% #????????????????????? | | # #????#s ###????????????????????? | | #????# #??????????????????????? | | ##??## # #????????????????????? | | " #### ##???????????????????? | | " " #???????????????????? | | "" " " " #???????????? | | # "" " " ## ### #??????????? | | ## " "" " #? #???????????????? | | ?## " """ #?# ##???????????????? | | ??# " #?######????????????????? | | ??# """""" ??????????????????????? | | ??# " " ?????????????????????? | | ??# " ### ????????????????????? | | ??# "" ##?## #???????????????????? | | ??# ??""" " #???# #??????????????????? | | ??#?? " "" #???# #??????????????????? | | ??????" " #???? ##??????????????????? | | ?????? $ " #???? ####???????????????????? | | ????? ???? ##??????????????????????? | | ????? ???? #???????????????????????? | | ????#### ???? ???????????????????????? | | ??????? ?? #???? ???????????????????????? | | ??????#??? ## #?????## ???????????????????????? | | ?????????? #?# #????????# ??????????????????????? | +----------------------------------------------------+ Best States ------------- Heat Dissipation 28 Energy Generation 27 Energy Capacity 265 Matter Stores 300 Matter Capacity 300 Sight Range 24 Terrain Scan Density 10 Armor Coverage 225 Weapon Cycling 15 Evasion (%) 55 Recoil Reduction 3 Item Schematics ----------------- Hcp. Storage Unit | -10/Materials | Hacked Robot Schematics ------------------ None Fabricated ------------ Nothing Alien Tech Used ----------------- None Achievements -------------- None Challenges ------------ None Game ------ Seed FlightTrackerGuard Manual? 1 Play Time 01:43:52 Cumulative 580.1 hours Start 2024.11.26 @ 08:11:05 End 2024.11.26 @ 10:00:25 Sessions 1 Manual Loads 0 Difficulty Rogue Special Mode None Game No. 158 Rogue 158 Adventurer 0 Explorer 0 Win Type - Total 41 Types 30/0/4/2/1/1/1/2/0 Lore% 41 Gallery% 80 Achievement% 86 Wizard Run 0 Options --------- Layout 2 ASCII 0 Keyboard 1 Movement Numpad Keybinds 0 Fullscreen 2 Font 24/Smallcaps Map View 50x44 Zoom Use 0% Tactical HUD 1 Map Filters NONE Filters NONE Steam 0 RUN: f395cd02-000c-478a-a719-f57d0066efcc